[Event "Chigorin Memorial 2019"]
[Site "Saint Petersburg"]
[Date "2019.10.09"]
[Round "5.7"]
[White "Yuffa, Daniil"]
[Black "Yanchenko, Roman"]
[Result "1/2-1/2"]
[ECO "E01"]
[WhiteElo "2577"]
[BlackElo "2454"]
[Annotator "RC"]
[PlyCount "133"]
[EventDate "2019.10.05"]
[EventType "swiss"]
[EventCountry "RUS"]
[SourceTitle "playchess.com"]
[Source "ChessBase"]
[SourceQuality "1"]
[TimeControl "5400+30"]

1. d4 {[%emt 0:01:31]} Nf6 {[%emt 0:03:18]} 2. c4 {[%emt 0:00:08]} e6 {[%emt 0:00:03]} 3. g3 {[%emt 0:00:07]} d5 {[%emt 0:00:06]} 4. Bg2 {[%emt 0:00:03]} Bb4+ {[%emt 0:00:03]} 5. Nd2 {[%emt 0:00:05]} O-O {[%emt 0:00:15]} 6. Ngf3 {[%emt 0:00:04]} c6 {[%emt 0:05:19]} 7. O-O {[%emt 0:00:35]} Nbd7 {[%emt 0:00:03]} 8. Qc2 {[%emt 0:02:25]} b5 {[%emt 0:11:39]} 9. c5 {[%emt 0:06:06]} Bxd2 {[%emt 0:00:37]} 10. Bxd2 {[%emt 0:01:27]} Re8 {[%emt 0:00:36]} 11. Bf4 {[%emt 0:02:59]} a5 {[%emt 0:03:29]} 12. Rac1 {[%emt 0:10:16]} Ba6 {[%emt 0:03:05]} 13. Bd6 {[%emt 0:02:49]} b4 {[%emt 0:01:33]} 14. Ne5 {[%emt 0:03:14]} Nxe5 {[%emt 0:02:31]} 15. dxe5 {[%emt 0:00:43]} Nd7 {[%emt 0:00:09]} 16. Rfe1 {[%emt 0:03:31]} f5 {[%emt 0:01:04]} 17. exf6 {[%emt 0:00:34]} Qxf6 {[%emt 0:00:11]} 18. e4 {[%emt 0:00:14]} Qg6 {[%emt 0:01:49]} 19. Qd2 {[%emt 0:06:41]} Nf6 {[%emt 0:00:44]} 20. e5 {[%emt 0:04:41]} Ne4 {[%emt 0:06:45]} 21. Qd4 {[%emt 0:00:53]} Ng5 {[%emt 0:00:10]} 22. Re3 {[%emt 0:02:20]} Ra7 {[%emt 0:01:15]} 23. h3 {[%emt 0:09:45]} Bb5 {[%emt 0:09:49]} 24. f3 {[%emt 0:05:02]} h5 {[%emt 0:01:59]} 25. Kh2 {[%emt 0:01:51]} Nf7 {[%emt 0:00:39]} 26. a3 {[%emt 0:01:28]} Nh6 {[%emt 0:01:51]} 27. g4 {[%emt 0:00:18]} Rf7 {[%emt 0:02:11]} 28. axb4 {[%emt 0:04:08]} axb4 {[%emt 0:00:06]} 29. Rb3 {[%emt 0:01:52]} Qg5 {[%emt 0:00:28]} 30. Qe3 {[%emt 0:00:37]} Qxe3 {[%emt 0:02:36]} 31. Rxe3 {[%emt 0:01:32]} Ra8 {[%emt 0:00:03]} 32. Rb3 {[%emt 0:05:42]} Rf4 {[%emt 0:00:55]} 33. Kg3 {[%emt 0:03:39]} Rd4 {[%emt 0:00:06]} 34. Be7 {[%emt 0:02:09]} Ra2 {[%emt 0:01:08]} 35. Bf1 {[%emt 0:02:50]} Ba4 {[%emt 0:03:52]} 36. Rd3 {[%emt 0:00:12]} Rxd3 {[%emt 0:00:07]} 37. Bxd3 {[%emt 0:00:03]} Rxb2 {[%emt 0:01:09]} 38. Ra1 {[%emt 0:00:04]} Bc2 {[%emt 0:00:05]} 39. Bxc2 {[%emt 0:00:59]} Rxc2 {[%emt 0:00:03]} 40. Ra8+ {[%emt 0:06:31]} Kh7 {[%emt 0:02:09]} 41. Ra7 {[%emt 0:01:56]} hxg4 {[%emt 0:01:02]} 42. hxg4 {[%emt 0:00:25]} Kg8 {[%emt 0:13:00]} 43. Rb7 {[%emt 0:00:49]} Rc3 {[%emt 0:04:44]} 44. Rxb4 {[%emt 0:04:02]} Nf7 {[%emt 0:00:04]} 45. Kf4 {[%emt 0:01:26]} Rc4+ {[%emt 0:02:50]} 46. Rxc4 {[%emt 0:00:02]} dxc4 {[%emt 0:00:02]} 47. Ke3 {[%emt 0:02:11]} c3 {[%emt 0:02:23]} 48. f4 {[%emt 0:01:06]} Nh6 {[%emt 0:00:02]} 49. Kd3 {[%emt 0:00:31]} Nxg4 {[%emt 0:00:11]} 50. Kxc3 {[%emt 0:00:04]} Ne3 {[%emt 0:00:50]} 51. Bg5 {[%emt 0:00:56]} Kf7 {[%emt 0:00:14]} 52. Kb4 {[%emt 0:00:40]} Ke8 {[%emt 0:00:15]} 53. Ka5 {[%emt 0:00:22]} Kd7 {[%emt 0:00:36]} 54. Kb6 {[%emt 0:00:36]} Nc4+ {[%emt 0:00:21]} 55. Kb7 {[%emt 0:00:37]} Nb2 {[%emt 0:00:05]} 56. f5 {[%emt 0:00:24]} exf5 {[%emt 0:00:19]} 57. e6+ {[%emt 0:00:25]} Kxe6 {[%emt 0:00:04]} 58. Kxc6 {[%emt 0:00:01]} Nc4 {[%emt 0:06:50]} 59. Bf4 {[%emt 0:00:06]} Na5+ {[%emt 0:01:40]} 60. Kb6 {[%emt 0:01:23]} Kd5 {[%emt 0:00:09]} 61. Kxa5 {[%emt 0:00:20]} Kxc5 {[%emt 0:00:02]} 62. Bg5 {[%emt 0:00:19]} Kd4 {[%emt 0:00:17]} 63. Kb4 {[%emt 0:00:08]} g6 {[%emt 0:01:14]} 64. Bh6 {[%emt 0:00:48]} Ke4 {[%emt 0:00:10]} 65. Kc3 {[%emt 0:00:04]} f4 {[%emt 0:00:11]} 66. Kd2 {[%emt 0:00:16]} Kf3 {[%emt 0:00:06]} 67. Ke1 {[%emt 0:00:08]} 1/2-1/2

[Event "Chigorin Memorial 2019"]
[Site "Saint Petersburg"]
[Date "2019.10.10"]
[Round "6.1"]
[White "Bocharov, Ivan"]
[Black "Vokhidov, Shamsiddin"]
[Result "1-0"]
[ECO "B29"]
[WhiteElo "2550"]
[BlackElo "2519"]
[Annotator "ChessBase"]
[PlyCount "67"]
[EventDate "2019.10.05"]
[EventType "swiss"]
[EventCountry "RUS"]
[SourceTitle "playchess.com"]
[Source "ChessBase"]
[SourceQuality "1"]
[TimeControl "5400+30"]

1. e4 {[%emt 0:00:00]} c5 {[%emt 0:00:00]} 2. Nf3 {[%emt 0:00:00]} Nf6 {[%emt 0:00:00]} 3. e5 {[%emt 0:00:35]} Nd5 {[%emt 0:00:00]} 4. Nc3 {[%emt 0:00:08]} Nxc3 {[%emt 0:00:02]} 5. dxc3 {[%emt 0:00:02]} Nc6 {[%emt 0:00:05]} 6. Bf4 {[%emt 0:01:02]} Qb6 {[%emt 0:00:50]} 7. b3 {[%emt 0:00:31]} Qc7 {[%emt 0:00:38]} 8. Bd3 {[%emt 0:03:56]} e6 {[%emt 0:00:20]} 9. O-O {[%emt 0:01:09]} h6 {[%emt 0:04:28]} 10. Qe2 {[%emt 0:02:55]} b6 {[%emt 0:08:15]} 11. Nd2 {[%emt 0:03:45]} d5 {[%emt 0:08:07]} 12. c4 {[%emt 0:05:19]} d4 {[%emt 0:09:16]} 13. Bg3 {[%emt 0:07:47]} Bb7 {[%emt 0:01:02]} 14. f4 {[%emt 0:01:29]} Nb4 {[%emt 0:11:00]} 15. f5 {[%emt 0:00:49]} Nxd3 {[%emt 0:02:24]} 16. cxd3 {[%emt 0:06:36]} Qd7 {[%emt 0:04:32]} 17. Ne4 {[%emt 0:07:54]} O-O-O {[%emt 0:05:48]} 18. fxe6 {[%emt 0:00:34]} Qxe6 {[%emt 0:01:21]} 19. Rae1 {[%emt 0:00:22]} Rd7 {[%emt 0:04:08]} 20. Qh5 {[%emt 0:06:44]} g6 {[%emt 0:03:12]} 21. Qh4 {[%emt 0:01:47]} Be7 {[%emt 0:02:27]} 22. Qf4 {[%emt 0:00:42]} Bg5 {[%emt 0:04:59]} 23. Nxg5 {[%emt 0:00:21]} hxg5 {[%emt 0:00:02]} 24. Qxg5 {[%emt 0:00:05]} Rh5 {[%emt 0:00:10]} 25. Qd2 {[%emt 0:01:21]} Rf5 {[%emt 0:00:53]} 26. Rxf5 {[%emt 0:00:37]} gxf5 {[%emt 0:00:05]} 27. Rf1 {[%emt 0:00:15]} Re7 {[%emt 0:02:05]} 28. Qg5 {[%emt 0:01:27]} Bc6 {[%emt 0:02:26]} 29. Rxf5 {[%emt 0:00:32]} Qd7 {[%emt 0:00:09]} 30. h4 {[%emt 0:01:42]} Kb7 {[%emt 0:01:31]} 31. h5 {[%emt 0:00:21]} Re6 {[%emt 0:00:18]} 32. Qf4 {[%emt 0:00:18]} Ka6 {[%emt 0:00:18]} 33. Rxf7 {[%emt 0:00:42]} Qe8 {[%emt 0:00:10]} 34. h6 {[%emt 0:00:38]} 1-0

[Event "Chigorin Memorial 2019"]
[Site "Saint Petersburg"]
[Date "2019.10.10"]
[Round "6.2"]
[White "Sivuk, Vitaly"]
[Black "Petrosyan, Manuel"]
[Result "1/2-1/2"]
[ECO "D38"]
[WhiteElo "2559"]
[BlackElo "2611"]
[Annotator "ChessBase"]
[PlyCount "101"]
[EventDate "2019.10.05"]
[EventType "swiss"]
[EventCountry "RUS"]
[SourceTitle "playchess.com"]
[Source "ChessBase"]
[SourceQuality "1"]
[TimeControl "5400+30"]

1. d4 {[%emt 0:00:00]} Nf6 {[%emt 0:03:27]} 2. c4 {[%emt 0:00:00]} e6 {[%emt 0:00:05]} 3. Nf3 {[%emt 0:00:00]} d5 {[%emt 0:00:07]} 4. Nc3 {[%emt 0:00:05]} Bb4 {[%emt 0:01:22]} 5. cxd5 {[%emt 0:00:14]} exd5 {[%emt 0:00:09]} 6. Bf4 {[%emt 0:00:08]} c6 {[%emt 0:03:36]} 7. e3 {[%emt 0:00:22]} Bf5 {[%emt 0:02:08]} 8. Be2 {[%emt 0:00:19]} Ne4 {[%emt 0:08:24]} 9. Qb3 {[%emt 0:00:45]} Qb6 {[%emt 0:01:05]} 10. Bd3 {[%emt 0:04:52]} Nd7 {[%emt 0:18:52]} 11. Qc2 {[%emt 0:01:33]} c5 {[%emt 0:03:05]} 12. Nd2 {[%emt 0:07:20]} Ndf6 {[%emt 0:12:06]} 13. dxc5 {[%emt 0:15:08]} Qxc5 {[%emt 0:01:11]} 14. Nb3 {[%emt 0:01:40]} Qe7 {[%emt 0:02:52]} 15. f3 {[%emt 0:08:08]} Nxc3 {[%emt 0:02:33]} 16. Bxf5 {[%emt 0:00:41]} Nce4+ {[%emt 0:02:05]} 17. Ke2 {[%emt 0:05:17]} Nd6 {[%emt 0:00:52]} 18. Nd4 {[%emt 0:07:35]} O-O {[%emt 0:02:50]} 19. Rac1 {[%emt 0:07:01]} g6 {[%emt 0:06:20]} 20. a3 {[%emt 0:02:42]} Ba5 {[%emt 0:06:44]} 21. Qc5 {[%emt 0:02:40]} Nxf5 {[%emt 0:01:45]} 22. Nxf5 {[%emt 0:00:08]} Qxc5 {[%emt 0:00:23]} 23. Rxc5 {[%emt 0:00:07]} Bd8 {[%emt 0:03:48]} 24. Nd6 {[%emt 0:00:15]} Bb6 {[%emt 0:01:17]} 25. Rb5 {[%emt 0:00:42]} d4 {[%emt 0:10:38]} 26. e4 {[%emt 0:01:04]} Nh5 {[%emt 0:01:01]} 27. Bd2 {[%emt 0:11:35]} Rad8 {[%emt 0:01:08]} 28. e5 {[%emt 0:02:15]} f6 {[%emt 0:00:14]} 29. Kd3 {[%emt 0:03:13]} fxe5 {[%emt 0:00:33]} 30. Nxb7 {[%emt 0:02:48]} Rd7 {[%emt 0:01:05]} 31. Na5 {[%emt 0:00:32]} Rf5 {[%emt 0:02:14]} 32. a4 {[%emt 0:03:43]} Bxa5 {[%emt 0:00:08]} 33. Rxa5 {[%emt 0:00:45]} Nf4+ {[%emt 0:00:09]} 34. Ke4 {[%emt 0:00:40]} Nxg2 {[%emt 0:00:16]} 35. Rxe5 {[%emt 0:01:48]} Rxe5+ {[%emt 0:00:03]} 36. Kxe5 {[%emt 0:00:05]} Nh4 {[%emt 0:00:01]} 37. Rf1 {[%emt 0:00:13]} Nf5 {[%emt 0:00:35]} 38. Ke4 {[%emt 0:00:51]} Kf7 {[%emt 0:02:18]} 39. Kd3 {[%emt 0:01:03]} Ke6 {[%emt 0:01:18]} 40. Rc1 {[%emt 0:00:21]} Nh4 {[%emt 0:00:26]} 41. Ke4 {[%emt 0:00:22]} d3 {[%emt 0:00:35]} 42. Rc3 {[%emt 0:01:28]} Rb7 {[%emt 0:00:25]} 43. b3 {[%emt 0:00:27]} Rb4+ {[%emt 0:00:15]} 44. Ke3 {[%emt 0:00:20]} Nf5+ {[%emt 0:00:06]} 45. Kxd3 {[%emt 0:00:08]} Rd4+ {[%emt 0:00:03]} 46. Kc2 {[%emt 0:00:30]} Rh4 {[%emt 0:02:23]} 47. Rc7 {[%emt 0:11:37]} Rxh2 48. Rxa7 Nd4+ 49. Kd3 Nxb3 {[%emt 0:01:30]} 50. Be3 {[%emt 0:01:30]} Rh3 {[%emt 0:00:30]} 51. Ke4 {[%emt 0:00:30] Ke5+} 1/2-1/2

[Event "Chigorin Memorial 2019"]
[Site "Saint Petersburg"]
[Date "2019.10.10"]
[Round "6.3"]
[White "Vorobiov, Evgeny E."]
[Black "Kokarev, Dmitry"]
[Result "1/2-1/2"]
[ECO "D85"]
[WhiteElo "2555"]
[BlackElo "2593"]
[Annotator "ChessBase"]
[PlyCount "28"]
[EventDate "2019.10.05"]
[EventType "swiss"]
[EventCountry "RUS"]
[SourceTitle "playchess.com"]
[Source "ChessBase"]
[SourceQuality "1"]
[TimeControl "5400+30"]

1. d4 {[%emt 0:00:00]} Nf6 {[%emt 0:00:00]} 2. c4 {[%emt 0:00:00]} g6 {[%emt 0:00:01]} 3. Nc3 {[%emt 0:00:00]} d5 {[%emt 0:00:15]} 4. cxd5 {[%emt 0:00:00]} Nxd5 {[%emt 0:00:15]} 5. e4 {[%emt 0:00:08]} Nxc3 {[%emt 0:00:14]} 6. bxc3 {[%emt 0:00:05]} Bg7 {[%emt 0:00:14]} 7. Nf3 {[%emt 0:00:14]} c5 {[%emt 0:00:34]} 8. Be3 {[%emt 0:00:10]} Qa5 {[%emt 0:00:28]} 9. Nd2 {[%emt 0:00:53]} O-O {[%emt 0:00:28]} 10. Nb3 {[%emt 0:00:17]} Qxc3+ {[%emt 0:00:32]} 11. Bd2 {[%emt 0:00:05]} Qb2 {[%emt 0:00:11]} 12. Bc1 {[%emt 0:00:03]} Qc3+ {[%emt 0:00:08]} 13. Bd2 {[%emt 0:00:03]} Qb2 {[%emt 0:00:12]} 14. Bc1 {[%emt 0:00:03]} Qc3+ {[%emt 0:00:08]} 1/2-1/2

[Event "Chigorin Memorial 2019"]
[Site "Saint Petersburg"]
[Date "2019.10.10"]
[Round "6.5"]
[White "Ter-Sahakyan, Samvel"]
[Black "Vogel, Roven"]
[Result "1-0"]
[ECO "B11"]
[WhiteElo "2616"]
[BlackElo "2456"]
[Annotator "ChessBase"]
[PlyCount "85"]
[EventDate "2019.10.05"]
[EventType "swiss"]
[EventCountry "RUS"]
[SourceTitle "playchess.com"]
[Source "ChessBase"]
[SourceQuality "1"]
[TimeControl "5400+30"]

1. e4 {[%emt 0:00:00]} c6 {[%emt 0:00:00]} 2. Nf3 {[%emt 0:00:00]} d5 {[%emt 0:00:05]} 3. Nc3 {[%emt 0:00:00]} Nf6 {[%emt 0:00:10]} 4. e5 {[%emt 0:00:00]} Ne4 {[%emt 0:00:07]} 5. Ne2 {[%emt 0:00:01]} Qb6 {[%emt 0:00:08]} 6. d4 {[%emt 0:00:06]} e6 {[%emt 0:00:07]} 7. Ng3 {[%emt 0:00:04]} c5 {[%emt 0:00:12]} 8. Bd3 {[%emt 0:00:06]} Nxg3 {[%emt 0:00:08]} 9. fxg3 {[%emt 0:00:04]} Nc6 {[%emt 0:04:37]} 10. O-O {[%emt 0:01:06]} cxd4 {[%emt 0:05:26]} 11. Qe2 {[%emt 0:01:02]} h6 {[%emt 0:03:45]} 12. a3 {[%emt 0:01:17]} Bd7 {[%emt 0:06:31]} 13. b4 {[%emt 0:00:23]} O-O-O {[%emt 0:08:18]} 14. g4 {[%emt 0:21:43]} Kb8 {[%emt 0:05:36]} 15. Bf4 {[%emt 0:11:36]} Be7 {[%emt 0:07:48]} 16. Bg3 {[%emt 0:01:48]} Ka8 {[%emt 0:03:35]} 17. Kh1 {[%emt 0:04:33]} Rc8 {[%emt 0:03:36]} 18. Rae1 {[%emt 0:03:54]} Rhf8 {[%emt 0:11:00]} 19. Bf2 {[%emt 0:18:48]} f6 {[%emt 0:02:35]} 20. b5 {[%emt 0:03:52]} Na5 {[%emt 0:03:32]} 21. Bxd4 {[%emt 0:13:03]} Bc5 {[%emt 0:02:04]} 22. Bb2 {[%emt 0:00:04]} Nc4 {[%emt 0:03:00]} 23. Bxc4 {[%emt 0:00:44]} dxc4 {[%emt 0:00:03]} 24. a4 {[%emt 0:00:13]} a6 {[%emt 0:13:13]} 25. Bc3 {[%emt 0:05:55]} f5 {[%emt 0:01:26]} 26. gxf5 {[%emt 0:04:24]} Rxf5 {[%emt 0:01:22]} 27. Rd1 {[%emt 0:01:10]} Be8 {[%emt 0:00:58]} 28. Ra1 {[%emt 0:00:40]} Kb8 {[%emt 0:02:16]} 29. Rfb1 {[%emt 0:00:27]} Bh5 {[%emt 0:05:02]} 30. a5 {[%emt 0:00:38]} Qd8 {[%emt 0:00:05]} 31. Qe4 {[%emt 0:03:51]} Be8 {[%emt 0:03:25]} 32. bxa6 {[%emt 0:02:23]} Bc6 {[%emt 0:00:02]} 33. Qe2 {[%emt 0:01:03]} Rxf3 {[%emt 0:02:58]} 34. gxf3 {[%emt 0:00:10]} g5 {[%emt 0:00:06]} 35. axb7 {[%emt 0:00:56]} Rc7 {[%emt 0:02:23]} 36. a6 {[%emt 0:00:04]} Ba7 {[%emt 0:00:56]} 37. Ba5 {[%emt 0:01:38]} g4 {[%emt 0:00:57]} 38. Bxc7+ {[%emt 0:00:34]} Qxc7 {[%emt 0:00:30]} 39. Rf1 {[%emt 0:00:05]} Qf7 {[%emt 0:00:48]} 40. Rad1 {[%emt 0:00:58]} Bb6 {[%emt 0:00:05]} 41. Rd6 {[%emt 0:00:28]} Bxf3+ {[%emt 0:01:02]} 42. Rxf3 {[%emt 0:00:07]} gxf3 {[%emt 0:00:04]} 43. Rxb6 {[%emt 0:00:07]} 1-0

[Event "Chigorin Memorial 2019"]
[Site "Saint Petersburg"]
[Date "2019.10.10"]
[Round "6.6"]
[White "Mikaelyan, Arman"]
[Black "Khalifman, Alexander"]
[Result "0-1"]
[ECO "B13"]
[WhiteElo "2481"]
[BlackElo "2614"]
[Annotator "ChessBase"]
[PlyCount "110"]
[EventDate "2019.10.05"]
[EventType "swiss"]
[EventCountry "RUS"]
[SourceTitle "playchess.com"]
[Source "ChessBase"]
[SourceQuality "1"]
[TimeControl "5400+30"]

1. e4 {[%emt 0:00:39]} c6 {[%emt 0:00:00]} 2. d4 {[%emt 0:00:33]} d5 {[%emt 0:00:00]} 3. exd5 {[%emt 0:00:11]} cxd5 {[%emt 0:00:00]} 4. Bd3 {[%emt 0:00:07]} Nf6 {[%emt 0:00:00]} 5. c3 {[%emt 0:00:09]} Bg4 {[%emt 0:00:04]} 6. Qb3 {[%emt 0:01:48]} Qc7 {[%emt 0:00:16]} 7. Ne2 {[%emt 0:11:46]} Bxe2 {[%emt 0:00:43]} 8. Bxe2 {[%emt 0:00:09]} e6 {[%emt 0:00:07]} 9. Be3 {[%emt 0:01:56]} Bd6 {[%emt 0:04:56]} 10. Nd2 {[%emt 0:00:25]} O-O {[%emt 0:04:25]} 11. g3 {[%emt 0:14:19]} Nc6 {[%emt 0:05:19]} 12. O-O {[%emt 0:00:48]} h6 {[%emt 0:02:50]} 13. Qd1 {[%emt 0:03:46]} a6 {[%emt 0:07:09]} 14. Bd3 {[%emt 0:02:25]} b5 {[%emt 0:06:29]} 15. Rc1 {[%emt 0:00:52]} e5 {[%emt 0:03:03]} 16. dxe5 {[%emt 0:03:53]} Nxe5 {[%emt 0:00:58]} 17. Bf5 {[%emt 0:00:06]} Rfe8 {[%emt 0:06:27]} 18. Bd4 {[%emt 0:03:48]} Bc5 {[%emt 0:06:34]} 19. Re1 {[%emt 0:04:23]} Qd6 {[%emt 0:01:26]} 20. Nb3 {[%emt 0:04:08]} Bxd4 {[%emt 0:00:55]} 21. Nxd4 {[%emt 0:00:05]} g6 {[%emt 0:05:54]} 22. Bh3 {[%emt 0:00:04]} Kg7 {[%emt 0:01:34]} 23. Rc2 {[%emt 0:01:31]} b4 {[%emt 0:01:48]} 24. Rce2 {[%emt 0:09:07]} bxc3 {[%emt 0:01:31]} 25. bxc3 {[%emt 0:00:12]} Nc4 {[%emt 0:07:35]} 26. Rxe8 {[%emt 0:03:20]} Rxe8 {[%emt 0:00:07]} 27. Rxe8 {[%emt 0:00:11]} Nxe8 {[%emt 0:00:06]} 28. Bf1 {[%emt 0:00:36]} Qa3 {[%emt 0:07:41]} 29. Qb3 {[%emt 0:16:07]} Qc1 {[%emt 0:01:15]} 30. Qc2 {[%emt 0:00:20]} Qxc2 {[%emt 0:04:15]} 31. Nxc2 {[%emt 0:00:04]} a5 {[%emt 0:00:07]} 32. Bg2 {[%emt 0:04:32]} Nc7 {[%emt 0:01:52]} 33. f4 {[%emt 0:00:21]} Kf6 {[%emt 0:00:17]} 34. Kf2 {[%emt 0:00:16]} Ke6 {[%emt 0:01:24]} 35. Nd4+ {[%emt 0:00:48]} Kd6 {[%emt 0:00:09]} 36. Ke2 {[%emt 0:00:52]} Kc5 {[%emt 0:01:22]} 37. h4 {[%emt 0:02:14]} Ne8 {[%emt 0:03:48]} 38. h5 {[%emt 0:03:05]} gxh5 {[%emt 0:00:10]} 39. Nf5 {[%emt 0:00:33]} Ncd6 {[%emt 0:01:35]} 40. Nxh6 {[%emt 0:00:16]} Nf6 {[%emt 0:00:19]} 41. Kd3 {[%emt 0:04:31]} Nfe4 {[%emt 0:01:21]} 42. Bxe4 {[%emt 0:02:06]} dxe4+ {[%emt 0:00:07]} 43. Ke2 {[%emt 0:00:50]} Kc4 {[%emt 0:00:45]} 44. Kd2 {[%emt 0:01:10]} a4 {[%emt 0:00:48]} 45. g4 {[%emt 0:00:44]} h4 {[%emt 0:07:44]} 46. g5 {[%emt 0:00:03]} h3 {[%emt 0:00:07]} 47. Ng4 {[%emt 0:00:02]} Nf5 {[%emt 0:00:23]} 48. Ne5+ {[%emt 0:00:23]} Kd5 {[%emt 0:00:19]} 49. Ng4 {[%emt 0:00:05]} Kc5 {[%emt 0:00:29]} 50. Nh2 {[%emt 0:03:01]} Kc4 {[%emt 0:00:41]} 51. Ng4 {[%emt 0:00:08]} e3+ {[%emt 0:01:32]} 52. Kc2 {[%emt 0:00:03]} a3 {[%emt 0:01:38]} 53. Nh2 {[%emt 0:00:04]} Ng3 {[%emt 0:01:18]} 54. Nf3 {[%emt 0:00:53]} Ne4 {[%emt 0:00:29]} 55. f5 {[%emt 0:01:54]} Nxg5 {[%emt 0:00:44]} 0-1

[Event "Chigorin Memorial 2019"]
[Site "Saint Petersburg"]
[Date "2019.10.10"]
[Round "6.7"]
[White "Khismatullin, Denis"]
[Black "Bryakin, Mikhail"]
[Result "1-0"]
[ECO "D45"]
[WhiteElo "2611"]
[BlackElo "2440"]
[Annotator "ChessBase"]
[PlyCount "119"]
[EventDate "2019.10.05"]
[EventType "swiss"]
[EventCountry "RUS"]
[SourceTitle "playchess.com"]
[Source "ChessBase"]
[SourceQuality "1"]
[TimeControl "5400+30"]

1. c4 {[%emt 0:00:00]} c6 {[%emt 0:02:00]} 2. Nf3 {[%emt 0:00:17]} d5 {[%emt 0:00:05]} 3. e3 {[%emt 0:00:05]} Nf6 {[%emt 0:00:04]} 4. Nc3 {[%emt 0:00:06]} e6 {[%emt 0:00:13]} 5. b3 {[%emt 0:00:10]} Nbd7 {[%emt 0:00:12]} 6. Qc2 {[%emt 0:00:41]} Bd6 {[%emt 0:00:31]} 7. Bb2 {[%emt 0:00:09]} O-O {[%emt 0:02:32]} 8. Be2 {[%emt 0:01:47]} Re8 {[%emt 0:02:40]} 9. O-O {[%emt 0:01:20]} a6 {[%emt 0:02:41]} 10. d4 {[%emt 0:02:16]} e5 {[%emt 0:05:06]} 11. cxd5 {[%emt 0:03:29]} cxd5 {[%emt 0:02:10]} 12. dxe5 {[%emt 0:01:43]} Nxe5 {[%emt 0:00:21]} 13. Rad1 {[%emt 0:00:57]} Qc7 {[%emt 0:04:30]} 14. h3 {[%emt 0:03:14]} Nxf3+ {[%emt 0:06:42]} 15. Bxf3 {[%emt 0:01:34]} Be6 {[%emt 0:00:49]} 16. Qb1 {[%emt 0:12:34]} Rad8 {[%emt 0:01:29]} 17. Qa1 {[%emt 0:02:34]} Be5 {[%emt 0:09:06]} 18. Ne2 {[%emt 0:04:34]} Bxb2 {[%emt 0:02:17]} 19. Qxb2 {[%emt 0:01:29]} Bf5 {[%emt 0:04:18]} 20. Rd4 {[%emt 0:05:39]} Be4 {[%emt 0:02:01]} 21. Bxe4 {[%emt 0:04:41]} dxe4 {[%emt 0:01:03]} 22. Rc1 {[%emt 0:00:06]} Qb8 {[%emt 0:06:49]} 23. Rc5 {[%emt 0:05:09]} h6 {[%emt 0:01:04]} 24. Qc3 {[%emt 0:04:07]} Rc8 {[%emt 0:02:13]} 25. Rdc4 {[%emt 0:01:13]} Rxc5 {[%emt 0:00:08]} 26. Rxc5 {[%emt 0:00:06]} Qd6 {[%emt 0:01:05]} 27. Nd4 {[%emt 0:00:59]} Rd8 {[%emt 0:01:56]} 28. Qc4 {[%emt 0:05:04]} Rd7 {[%emt 0:02:21]} 29. Rc8+ {[%emt 0:02:03]} Kh7 {[%emt 0:00:34]} 30. a4 {[%emt 0:07:19]} Qd5 {[%emt 0:02:01]} 31. Qb4 {[%emt 0:02:31]} Qd6 {[%emt 0:01:45]} 32. Qxd6 {[%emt 0:05:31]} Rxd6 {[%emt 0:01:48]} 33. g4 {[%emt 0:00:02]} Rd7 {[%emt 0:01:44]} 34. Kg2 {[%emt 0:00:30]} g5 {[%emt 0:00:45]} 35. Kg3 {[%emt 0:01:42]} h5 {[%emt 0:04:50]} 36. Nf5 {[%emt 0:03:48]} hxg4 {[%emt 0:01:32]} 37. hxg4 {[%emt 0:00:05]} Nd5 {[%emt 0:06:06]} 38. Rc4 {[%emt 0:05:20]} Nf6 {[%emt 0:00:43]} 39. Rb4 {[%emt 0:00:45]} Kg8 {[%emt 0:04:11]} 40. Rb6 {[%emt 0:02:20]} Ne8 {[%emt 0:00:05]} 41. a5 {[%emt 0:02:42]} Kf8 {[%emt 0:00:09]} 42. b4 {[%emt 0:00:37]} f6 {[%emt 0:01:09]} 43. Re6 {[%emt 0:00:43]} Kf7 {[%emt 0:00:34]} 44. Rxe4 {[%emt 0:00:13]} Nc7 {[%emt 0:01:35]} 45. Rc4 {[%emt 0:00:58]} Ke6 {[%emt 0:00:56]} 46. Kf3 {[%emt 0:02:16]} Nb5 {[%emt 0:00:24]} 47. Rc8 {[%emt 0:02:22]} Rc7 {[%emt 0:00:57]} 48. Rxc7 {[%emt 0:02:13]} Nxc7 {[%emt 0:00:06]} 49. Ke4 {[%emt 0:00:04]} Nd5 {[%emt 0:00:27]} 50. Nd4+ {[%emt 0:01:35]} Kd6 {[%emt 0:00:01]} 51. Kf5 {[%emt 0:00:36]} Ke7 {[%emt 0:02:19]} 52. b5 {[%emt 0:00:41]} axb5 {[%emt 0:00:04]} 53. Nxb5 {[%emt 0:00:05]} Nb4 {[%emt 0:00:32]} 54. Nd4 {[%emt 0:00:36]} Nd3 {[%emt 0:00:36]} 55. Nb3 {[%emt 0:02:31]} Kf7 {[%emt 0:00:48]} 56. f3 {[%emt 0:01:04]} Ne5 {[%emt 0:03:51]} 57. Ke4 {[%emt 0:00:20]} b6 {[%emt 0:06:41]} 58. a6 {[%emt 0:00:15]} Nc6 {[%emt 0:00:10]} 59. Nd4 {[%emt 0:00:26]} Na7 {[%emt 0:00:10]} 60. Kd5 {[%emt 0:00:09]} 1-0